Workbook

Sheet Расходы
A2: Аналитические данные о расходах бюджета Заволжского муниципального района по разделам и подразделам классификации расходов за 1 полугодие 2025 года в сравнении с соответствующим периодом 2024 года
A4: Наименование показателя | B4: Код классификации расходов бюджетов Российской Федерации | H4: Исполнено за 1 полугодие 2025 года (руб.) | O4: Исполнено за 1 полугодие 2024 года (руб.) | P4: Рост (снижение) 2025 года к 2024 году (по состоянию на 1 июля)
C5: бюджет субъекта Российской Федерации | D5: бюджеты внутри- городских муниципальных образований городов федерального значения | E5: бюджеты городских округов | F5: бюджеты городских округов с внутри- городским делением | G5: бюджеты внутри- городских районов | I5: бюджет территориаль- ного государ- ственного внебюджетного фонда | J5: бюджет субъекта Российской Федерации | K5: бюджеты внутри- городских муниципальных образований городов федерального значения | L5: бюджеты городских округов | M5: бюджеты городских округов с внутри- городским делением | N5: бюджеты внутри- городских районов | P5: в % (гр.4/гр.3*100) | Q5: в руб. (гр.4-гр.3)
A6: 1 | B6: 2 | C6: 8 | D6: 9 | E6: 10 | F6: 11 | G6: 12 | H6: 3 | I6: 16 | J6: 21 | K6: 22 | L6: 23 | M6: 24 | N6: 25 | O6: 4 | P6: 5 | Q6: 6
A7: Расходы бюджета - ИТОГО | B7: х | C7: 0.00 | D7: 0.00 | E7: 0.00 | F7: 0.00 | G7: 0.00 | H7: =H9+H15+H18+H23+H30+H37+H39+H44+H27 -> 123,472,432.36 | O7: 271,059,518.36 | P7: =O7/H7*100 -> 219.53 | Q7: =O7-H7 -> 147,587,086.00
A8: в том числе:
A9: ОБЩЕГОСУДАРСТВЕННЫЕ ВОПРОСЫ | B9: 000 0100 0000000000 000 | C9: 0.00 | D9: 0.00 | E9: 0.00 | F9: 0.00 | G9: 0.00 | H9: =H10+H11+H12+H14 -> 19,301,250.72 | I9: =I10+I11+I12+I14 -> 0.00 | J9: 0.00 | K9: 0.00 | L9: 0.00 | M9: 0.00 | N9: 0.00 | O9: 42,110,579.89 | P9: =O9/H9*100 -> 218.18 | Q9: =O9-H9 -> 22,809,329.17
A10: Функционирование высшего должностного лица субъекта Российской Федерации и муниципального образования | B10: 000 0102 0000000000 000 | C10: 0.00 | D10: 0.00 | E10: 0.00 | F10: 0.00 | G10: 0.00 | H10: 0.00 | I10: 0.00 | J10: 0.00 | K10: 0.00 | L10: 0.00 | M10: 0.00 | N10: 0.00 | O10: 463,839.34 | P10: =O10/H10*100 ->  | Q10: 463,839.34
A11: Функционирование Правительства Российской Федерации, высших исполнительных органов государственной власти субъектов Российской Федерации, местных администраций | B11: 000 0104 0000000000 000 | C11: 0.00 | D11: 0.00 | E11: 0.00 | F11: 0.00 | G11: 0.00 | H11: 11,291,035.77 | I11: 0.00 | J11: 0.00 | K11: 0.00 | L11: 0.00 | M11: 0.00 | N11: 0.00 | O11: 22,873,573.79 | P11: 202.58 | Q11: 11,582,538.02
A12: Обеспечение деятельности финансовых, налоговых и таможенных органов и органов финансового (финансово-бюджетного) надзора | B12: 000 0106 0000000000 000 | C12: 0.00 | D12: 0.00 | E12: 0.00 | F12: 0.00 | G12: 0.00 | H12: 1,980,101.10 | I12: 0.00 | J12: 0.00 | K12: 0.00 | L12: 0.00 | M12: 0.00 | N12: 0.00 | O12: 4,123,468.31 | P12: 208.25 | Q12: 2,143,367.21
A13: Резервные фонды | B13: 000 0111 0000000000 000 | C13: 0.00 | D13: 0.00 | E13: 0.00 | F13: 0.00 | G13: 0.00 | H13: 0.00 | I13: 0.00 | J13: 0.00 | K13: 0.00 | L13: 0.00 | M13: 0.00 | N13: 0.00 | O13: 0.00 | Q13: 0.00
A14: Другие общегосударственные вопросы | B14: 000 0113 0000000000 000 | C14: 0.00 | D14: 0.00 | E14: 0.00 | F14: 0.00 | G14: 0.00 | H14: 6,030,113.85 | I14: 0.00 | J14: 0.00 | K14: 0.00 | L14: 0.00 | M14: 0.00 | N14: 0.00 | O14: 14,649,698.45 | P14: 242.94 | Q14: 8,619,584.60
A15: НАЦИОНАЛЬНАЯ БЕЗОПАСНОСТЬ И ПРАВООХРАНИТЕЛЬНАЯ ДЕЯТЕЛЬНОСТЬ | B15: 000 0300 0000000000 000 | C15: 0.00 | D15: 0.00 | E15: 0.00 | F15: 0.00 | G15: 0.00 | H15: =H16+H17 -> 47,855.75 | I15: =I16+I17 -> 0.00 | J15: 0.00 | K15: 0.00 | L15: 0.00 | M15: 0.00 | N15: 0.00 | O15: 942,615.50 | P15: 1,969.70 | Q15: 894,759.75
A16: Защита населения и территории от чрезвычайных ситуаций природного и техногенного характера, пожарная безопасность | B16: 000 0310 0000000000 000 | C16: 0.00 | D16: 0.00 | E16: 0.00 | F16: 0.00 | G16: 0.00 | H16: 24,735.75 | I16: 0.00 | J16: 0.00 | K16: 0.00 | L16: 0.00 | M16: 0.00 | N16: 0.00 | O16: 884,815.50 | P16: 3,577.07 | Q16: 860,079.75
A17: Другие вопросы в области национальной безопасности и прправоохранительной деятельности | B17: 000 0314 0000000000 000 | H17: 23,120.00 | O17: 57,800.00 | P17: 250.00 | Q17: 34,680.00
A18: НАЦИОНАЛЬНАЯ ЭКОНОМИКА | B18: 000 0400 0000000000 000 | C18: 0.00 | D18: 0.00 | E18: 0.00 | F18: 0.00 | G18: 0.00 | H18: =H20+H21+H22 -> 16,127,234.90 | I18: =I20+I21+I22 -> 0.00 | J18: 0.00 | K18: 0.00 | L18: 0.00 | M18: 0.00 | N18: 0.00 | O18: 31,980,966.10 | P18: 198.30 | Q18: 15,853,731.20
A19: Сельское хозяйство и рыболовство | B19: 000 0405 0000000000 000 | C19: 0.00 | D19: 0.00 | E19: 0.00 | F19: 0.00 | G19: 0.00 | H19: 0.00 | I19: 0.00 | J19: 0.00 | K19: 0.00 | L19: 0.00 | M19: 0.00 | N19: 0.00 | O19: 0.00 | P19: 0.00 | Q19: 0.00
A20: Сельское хозяйство и рыболовство | B20: 000 0405 0000000000 000 | C20: 0.00 | D20: 0.00 | E20: 0.00 | F20: 0.00 | G20: 0.00 | H20: 0.00 | I20: 0.00 | J20: 0.00 | K20: 0.00 | L20: 0.00 | M20: 0.00 | N20: 0.00 | O20: 0.00 | P20: 0.00 | Q20: 0.00
A21: Транспорт | B21: 000 0408 0000000000 000 | C21: 0.00 | D21: 0.00 | E21: 0.00 | F21: 0.00 | G21: 0.00 | H21: 0.00 | I21: 0.00 | J21: 0.00 | K21: 0.00 | L21: 0.00 | M21: 0.00 | N21: 0.00 | O21: 0.00 | Q21: 0.00
A22: Дорожное хозяйство (дорожные фонды) | B22: 000 0409 0000000000 000 | C22: 0.00 | D22: 0.00 | E22: 0.00 | F22: 0.00 | G22: 0.00 | H22: 16,127,234.90 | I22: 0.00 | J22: 0.00 | K22: 0.00 | L22: 0.00 | M22: 0.00 | N22: 0.00 | O22: 31,980,966.10 | P22: 198.30 | Q22: 15,853,731.20
A23: ЖИЛИЩНО-КОММУНАЛЬНОЕ ХОЗЯЙСТВО | B23: 000 0500 0000000000 000 | C23: 0.00 | D23: 0.00 | E23: 0.00 | F23: 0.00 | G23: 0.00 | H23: =H24+H25+H26 -> 12,391,743.13 | I23: =I24+I25+I26+#REF! ->  | J23: =J24+J25+J26+#REF! ->  | K23: =K24+K25+K26+#REF! ->  | L23: =L24+L25+L26+#REF! ->  | M23: =M24+M25+M26+#REF! ->  | N23: =N24+N25+N26+#REF! ->  | O23: =O24+O25+O26 -> 27,720,405.66 | P23: 223.70 | Q23: 15,328,662.53
A24: Жилищное хозяйство | B24: 000 0501 0000000000 000 | H24: 1,231,469.81 | O24: 2,718,872.34 | P24: 220.78 | Q24: 1,487,402.53
A25: Коммунальное хозяйство | B25: 000 0502 0000000000 000 | C25: 0.00 | D25: 0.00 | E25: 0.00 | F25: 0.00 | G25: 0.00 | H25: 6,420,000.00 | I25: 0.00 | J25: 0.00 | K25: 0.00 | L25: 0.00 | M25: 0.00 | N25: 0.00 | O25: 12,536,383.27 | P25: 195.27 | Q25: 6,116,383.27
A26: Благоустройство | B26: 000 0503 0000000000 000 | H26: 4,740,273.32 | O26: 12,465,150.05 | P26: 262.96 | Q26: 7,724,876.73
A27: ОХРАНА ОКРУЖАЮЩЕЙ СРЕДЫ | B27: 000 0600 0000000000 000 | H27: =H28+H29 -> 0.00 | I27: =I28+I29 -> 0.00 | J27: 0.00 | K27: 0.00 | L27: 0.00 | M27: 0.00 | N27: 0.00 | O27: 0.00 | Q27: 0.00
A28: Сбор, удаление отходов и очистка сточных вод | B28: 000 0602 0000000000 000 | H28: 0.00 | O28: 0.00 | Q28: 0.00
A29: Охрана объектов растительного и животного мира и среды их обитания | B29: 000 0603 0000000000 000 | H29: 0.00 | O29: 0.00 | Q29: 0.00
A30: ОБРАЗОВАНИЕ | B30: 000 0700 0000000000 000 | C30: 0.00 | D30: 0.00 | E30: 0.00 | F30: 0.00 | G30: 0.00 | H30: =H31+H32+H33+H34+H35+H36 -> 68,946,137.08 | I30: =I31+I32+I33+I34+I35+I36 -> 0.00 | J30: 0.00 | K30: 0.00 | L30: 0.00 | M30: 0.00 | N30: 0.00 | O30: 154,738,979.00 | P30: 224.43 | Q30: 85,792,841.92
A31: Дошкольное образование | B31: 000 0701 0000000000 000 | C31: 0.00 | D31: 0.00 | E31: 0.00 | F31: 0.00 | G31: 0.00 | H31: 21,827,192.08 | I31: 0.00 | J31: 0.00 | K31: 0.00 | L31: 0.00 | M31: 0.00 | N31: 0.00 | O31: 47,443,017.77 | P31: 217.36 | Q31: 25,615,825.69
A32: Общее образование | B32: 000 0702 0000000000 000 | C32: 0.00 | D32: 0.00 | E32: 0.00 | F32: 0.00 | G32: 0.00 | H32: 36,721,209.28 | I32: 0.00 | J32: 0.00 | K32: 0.00 | L32: 0.00 | M32: 0.00 | N32: 0.00 | O32: 83,825,546.80 | P32: 228.28 | Q32: 47,104,337.52
A33: Допонительное образование детей | B33: 000 0703 0000000000 000 | C33: 0.00 | D33: 0.00 | E33: 0.00 | F33: 0.00 | G33: 0.00 | H33: 7,315,410.00 | I33: 0.00 | J33: 0.00 | K33: 0.00 | L33: 0.00 | M33: 0.00 | N33: 0.00 | O33: 15,266,870.00 | P33: 208.69 | Q33: 7,951,460.00
A34: Профессиональная подготовка, переподготовка и повышение квалификации | B34: 000 0705 0000000000 000 | C34: 0.00 | D34: 0.00 | E34: 0.00 | F34: 0.00 | G34: 0.00 | H34: 5,200.00 | I34: 0.00 | J34: 0.00 | K34: 0.00 | L34: 0.00 | M34: 0.00 | N34: 0.00 | O34: 36,438.00 | P34: 700.73 | Q34: 31,238.00
A35: Молодежная политика | B35: 000 0707 0000000000 000 | C35: 0.00 | D35: 0.00 | E35: 0.00 | F35: 0.00 | G35: 0.00 | H35: 35,000.00 | I35: 0.00 | J35: 0.00 | K35: 0.00 | L35: 0.00 | M35: 0.00 | N35: 0.00 | O35: 45,797.50 | P35: 130.85 | Q35: 10,797.50
A36: Другие вопросы в области образования | B36: 000 0709 0000000000 000 | C36: 0.00 | D36: 0.00 | E36: 0.00 | F36: 0.00 | G36: 0.00 | H36: 3,042,125.72 | I36: 0.00 | J36: 0.00 | K36: 0.00 | L36: 0.00 | M36: 0.00 | N36: 0.00 | O36: 8,121,308.93 | P36: 266.96 | Q36: 5,079,183.21
A37: КУЛЬТУРА, КИНЕМАТОГРАФИЯ | B37: 000 0800 0000000000 000 | C37: 0.00 | D37: 0.00 | E37: 0.00 | F37: 0.00 | G37: 0.00 | H37: =H38 -> 2,654,561.52 | I37: =I38 -> 0.00 | J37: 0.00 | K37: 0.00 | L37: 0.00 | M37: 0.00 | N37: 0.00 | O37: 3,908,635.02 | P37: 147.24 | Q37: 1,254,073.50
A38: Культура | B38: 000 0801 0000000000 000 | C38: 0.00 | D38: 0.00 | E38: 0.00 | F38: 0.00 | G38: 0.00 | H38: 2,654,561.52 | I38: 0.00 | J38: 0.00 | K38: 0.00 | L38: 0.00 | M38: 0.00 | N38: 0.00 | O38: 3,908,635.02 | P38: 147.24 | Q38: 1,254,073.50
A39: СОЦИАЛЬНАЯ ПОЛИТИКА | B39: 000 1000 0000000000 000 | C39: 0.00 | D39: 0.00 | E39: 0.00 | F39: 0.00 | G39: 0.00 | H39: =H40+H41+H42+H43 -> 1,033,964.76 | I39: =I40+I41+I42+I43 -> 0.00 | J39: 0.00 | K39: 0.00 | L39: 0.00 | M39: 0.00 | N39: 0.00 | O39: 3,046,004.70 | P39: 294.59 | Q39: 2,012,039.94
A40: Пенсионное обеспечение | B40: 000 1001 0000000000 000 | C40: 0.00 | D40: 0.00 | E40: 0.00 | F40: 0.00 | G40: 0.00 | H40: 929,964.76 | I40: 0.00 | J40: 0.00 | K40: 0.00 | L40: 0.00 | M40: 0.00 | N40: 0.00 | O40: 1,851,184.45 | P40: 199.06 | Q40: 921,219.69
A41: Социальное обеспечение населения | B41: 000 1003 0000000000 000 | C41: 0.00 | D41: 0.00 | E41: 0.00 | F41: 0.00 | G41: 0.00 | H41: 17,000.00 | I41: 0.00 | J41: 0.00 | K41: 0.00 | L41: 0.00 | M41: 0.00 | N41: 0.00 | O41: 85,000.00 | P41: 0.00 | Q41: 68,000.00
A42: Охрана семьи и детства | B42: 000 1004 0000000000 000 | C42: 0.00 | D42: 0.00 | E42: 0.00 | F42: 0.00 | G42: 0.00 | H42: 0.00 | I42: 0.00 | J42: 0.00 | K42: 0.00 | L42: 0.00 | M42: 0.00 | N42: 0.00 | O42: 935,820.25 | Q42: 935,820.25
A43: Другие вопросы в области социальной политики | B43: 000 1006 0000000000 000 | H43: 87,000.00 | O43: 174,000.00 | P43: 200.00 | Q43: 87,000.00
A44: ФИЗИЧЕСКАЯ КУЛЬТУРА И СПОРТ | B44: 000 1100 0000000000 000 | C44: 0.00 | D44: 0.00 | E44: 0.00 | F44: 0.00 | G44: 0.00 | H44: =H45+H46 -> 2,969,684.50 | I44: =I45+I46 -> 0.00 | J44: 0.00 | K44: 0.00 | L44: 0.00 | M44: 0.00 | N44: 0.00 | O44: 6,611,332.49 | P44: 222.63 | Q44: 3,641,647.99
A45: Физическая культура | B45: 000 1101 0000000000 000 | H45: 268,780.66 | O45: 434,893.11 | P45: 161.80 | Q45: 166,112.45
A46: Спорт высших достижений | B46: 000 1103 0000000000 000 | C46: 0.00 | D46: 0.00 | E46: 0.00 | F46: 0.00 | G46: 0.00 | H46: 2,700,903.84 | I46: 0.00 | J46: 0.00 | K46: 0.00 | L46: 0.00 | M46: 0.00 | N46: 0.00 | O46: 6,176,439.38 | P46: 228.68 | Q46: 3,475,535.54
Q47: ""
